[Event "Late-Titled-Tuesday-Blitz-January-30-2024"]
[Site "Chess.com"]
[Date "2024.01.30"]
[Round "5"]
[White "Zq1"]
[Black "GaiozNigalidze"]
[Result "0-1"]
[WhiteElo "2506"]
[BlackElo "2697"]
[TimeControl "180+1"]
[EndTime "14:57:18 PST"]
[Termination "GaiozNigalidze won on time"]

1. d4 {[%clk 0:03:00.9]} 1... Nf6 {[%clk 0:02:48.7]} 2. c4 {[%clk 0:03:00.4]}
2... c5 {[%clk 0:02:48.6]} 3. Nf3 {[%clk 0:02:59.1]} 3... cxd4 {[%clk
0:02:48.3]} 4. Nxd4 {[%clk 0:02:59.1]} 4... e5 {[%clk 0:02:48.8]} 5. Nb5 {[%clk
0:02:58.6]} 5... d5 {[%clk 0:02:48.6]} 6. cxd5 {[%clk 0:02:57.9]} 6... Bc5
{[%clk 0:02:48.8]} 7. N5c3 {[%clk 0:02:57.5]} 7... Bf5 {[%clk 0:02:41.5]} 8. g3
{[%clk 0:02:52.9]} 8... O-O {[%clk 0:02:37.7]} 9. Bg2 {[%clk 0:02:51.5]} 9... e4
{[%clk 0:02:34.5]} 10. O-O {[%clk 0:02:48.4]} 10... Nbd7 {[%clk 0:02:34.6]} 11.
Bg5 {[%clk 0:02:41.5]} 11... h6 {[%clk 0:02:27.6]} 12. Bxf6 {[%clk 0:02:37.5]}
12... Nxf6 {[%clk 0:02:28.5]} 13. e3 {[%clk 0:02:34.4]} 13... Re8 {[%clk
0:02:21.3]} 14. Nd2 {[%clk 0:02:30.9]} 14... Qe7 {[%clk 0:02:05.4]} 15. Nb3
{[%clk 0:02:26.2]} 15... Rad8 {[%clk 0:02:05]} 16. Nxc5 {[%clk 0:02:21]} 16...
Qxc5 {[%clk 0:02:04.9]} 17. Rc1 {[%clk 0:02:16.5]} 17... Nxd5 {[%clk 0:01:55.5]}
18. Qb3 {[%clk 0:01:35.7]} 18... Nxc3 {[%clk 0:01:45]} 19. Rxc3 {[%clk
0:01:34.8]} 19... Qe7 {[%clk 0:01:43.4]} 20. h3 {[%clk 0:01:31.8]} 20... Rd2
{[%clk 0:01:33.6]} 21. Rfc1 {[%clk 0:01:27.7]} 21... Be6 {[%clk 0:01:21.4]} 22.
Qa3 {[%clk 0:01:08.2]} 22... Qf6 {[%clk 0:01:13.1]} 23. Rf1 {[%clk 0:01:02.5]}
23... b5 {[%clk 0:00:51.7]} 24. Qxa7 {[%clk 0:00:51.3]} 24... Bc4 {[%clk
0:00:49.3]} 25. Rxc4 {[%clk 0:00:47.3]} 25... bxc4 {[%clk 0:00:49.8]} 26. Qa4
{[%clk 0:00:42.3]} 26... Qe6 {[%clk 0:00:37.5]} 27. Rc1 {[%clk 0:00:35.7]} 27...
Rxb2 {[%clk 0:00:30.8]} 28. Qxc4 {[%clk 0:00:32.9]} 28... Qxc4 {[%clk
0:00:23.9]} 29. Rxc4 {[%clk 0:00:32.8]} 29... f5 {[%clk 0:00:20.9]} 30. g4
{[%clk 0:00:22.7]} 30... g6 {[%clk 0:00:20.6]} 31. h4 {[%clk 0:00:16.9]} 31...
f4 {[%clk 0:00:12.8]} 32. Rxe4 {[%clk 0:00:11.7]} 32... Rxe4 {[%clk 0:00:11.5]}
33. Bxe4 {[%clk 0:00:11.7]} 33... fxe3 {[%clk 0:00:10.6]} 34. fxe3 {[%clk
0:00:10.9]} 34... g5 {[%clk 0:00:10.2]} 35. hxg5 {[%clk 0:00:10.3]} 35... hxg5
{[%clk 0:00:10.8]} 36. Bd5+ {[%clk 0:00:08.7]} 36... Kg7 {[%clk 0:00:11.1]} 37.
e4 {[%clk 0:00:08.1]} 37... Kf6 {[%clk 0:00:11.1]} 38. Kf1 {[%clk 0:00:06]}
38... Ke5 {[%clk 0:00:11.3]} 39. Ke1 {[%clk 0:00:05.9]} 39... Kf4 {[%clk
0:00:11.7]} 40. Kd1 {[%clk 0:00:06.2]} 40... Kxg4 {[%clk 0:00:11.9]} 41. Kc1
{[%clk 0:00:06.9]} 41... Rb4 {[%clk 0:00:11.2]} 42. Kc2 {[%clk 0:00:05.8]} 42...
Kf4 {[%clk 0:00:10.3]} 43. Kc3 {[%clk 0:00:05.8]} 43... Rb1 {[%clk 0:00:10]} 44.
a4 {[%clk 0:00:03.9]} 44... g4 {[%clk 0:00:07.6]} 45. a5 {[%clk 0:00:03.5]}
45... Ra1 {[%clk 0:00:07.2]} 46. Kb4 {[%clk 0:00:03]} 46... Ke5 {[%clk
0:00:06.7]} 0-1

[Event "Late-Titled-Tuesday-Blitz-January-30-2024"]
[Site "Chess.com"]
[Date "2024.01.30"]
[Round "5"]
[White "Narek_Ghimoyan"]
[Black "Bala-Afiada"]
[Result "1-0"]
[WhiteElo "2375"]
[BlackElo "2031"]
[TimeControl "180+1"]
[EndTime "14:57:20 PST"]
[Termination "Narek_Ghimoyan won on time"]

1. d4 {[%clk 0:02:52.3]} 1... Nf6 {[%clk 0:02:58.5]} 2. c4 {[%clk 0:02:51.6]}
2... e6 {[%clk 0:02:58.9]} 3. Nf3 {[%clk 0:02:51.9]} 3... d5 {[%clk 0:02:59.1]}
4. Nc3 {[%clk 0:02:51.9]} 4... c6 {[%clk 0:02:57.5]} 5. e3 {[%clk 0:02:49.9]}
5... Bd6 {[%clk 0:02:57.6]} 6. Bd3 {[%clk 0:02:49.2]} 6... O-O {[%clk
0:02:57.6]} 7. e4 {[%clk 0:02:49.3]} 7... dxe4 {[%clk 0:02:57]} 8. Nxe4 {[%clk
0:02:50.2]} 8... Nxe4 {[%clk 0:02:57.7]} 9. Bxe4 {[%clk 0:02:50.8]} 9... h6
{[%clk 0:02:57.5]} 10. O-O {[%clk 0:02:50.2]} 10... Nd7 {[%clk 0:02:56.1]} 11.
b3 {[%clk 0:02:48.7]} 11... e5 {[%clk 0:02:55.1]} 12. dxe5 {[%clk 0:02:37.2]}
12... Nxe5 {[%clk 0:02:56]} 13. Bb2 {[%clk 0:02:37.2]} 13... Qc7 {[%clk
0:02:19.5]} 14. Nxe5 {[%clk 0:02:24.9]} 14... Bxe5 {[%clk 0:02:20]} 15. Bxe5
{[%clk 0:02:25]} 15... Qxe5 {[%clk 0:02:20.9]} 16. Re1 {[%clk 0:02:25.4]} 16...
Qc7 {[%clk 0:02:10.6]} 17. Qc2 {[%clk 0:02:22.5]} 17... Be6 {[%clk 0:02:09.7]}
18. g3 {[%clk 0:02:21.4]} 18... Rad8 {[%clk 0:02:07.8]} 19. Rad1 {[%clk
0:02:19.5]} 19... Rxd1 {[%clk 0:02:06]} 20. Rxd1 {[%clk 0:02:20.4]} 20... Rd8
{[%clk 0:02:06.5]} 21. Rxd8+ {[%clk 0:02:12.1]} 21... Qxd8 {[%clk 0:02:07.4]}
22. Bh7+ {[%clk 0:02:12.4]} 22... Kf8 {[%clk 0:02:04]} 23. Bf5 {[%clk
0:02:12.5]} 23... Qd7 {[%clk 0:02:01.7]} 24. Bxe6 {[%clk 0:02:10.2]} 24... Qxe6
{[%clk 0:02:02.6]} 25. Qd2 {[%clk 0:02:10.7]} 25... Kg8 {[%clk 0:01:50.6]} 26.
h4 {[%clk 0:02:09.2]} 26... Qf6 {[%clk 0:01:32]} 27. Kg2 {[%clk 0:02:07.7]}
27... g6 {[%clk 0:01:29.2]} 28. Qxh6 {[%clk 0:02:06.2]} 28... Qb2 {[%clk
0:01:28.3]} 29. Qf4 {[%clk 0:01:50.3]} 29... Qxa2 {[%clk 0:01:20.3]} 30. Qb8+
{[%clk 0:01:50]} 30... Kg7 {[%clk 0:01:20.9]} 31. Qxb7 {[%clk 0:01:50.7]} 31...
c5 {[%clk 0:01:06.1]} 32. Qd5 {[%clk 0:01:44]} 32... Qxb3 {[%clk 0:00:57.1]} 33.
Qxc5 {[%clk 0:01:40.4]} 33... Qc2 {[%clk 0:00:40.1]} 34. Qxa7 {[%clk 0:01:34.3]}
34... Qe4+ {[%clk 0:00:36.4]} 35. Kh2 {[%clk 0:01:32.2]} 35... Qxc4 {[%clk
0:00:32.3]} 36. Qe3 {[%clk 0:01:32.6]} 36... Qc2 {[%clk 0:00:21.5]} 37. g4
{[%clk 0:01:29.9]} 37... Kg8 {[%clk 0:00:18.3]} 38. Kg3 {[%clk 0:01:29.4]} 38...
Qc7+ {[%clk 0:00:16.8]} 39. Qf4 {[%clk 0:01:29.6]} 39... Qc3+ {[%clk 0:00:16.4]}
40. Qf3 {[%clk 0:01:27.9]} 40... Qc7+ {[%clk 0:00:16.3]} 41. Kh3 {[%clk
0:01:28.4]} 41... Qc1 {[%clk 0:00:14]} 42. h5 {[%clk 0:01:24.3]} 42... Qf1+
{[%clk 0:00:13.1]} 43. Kh4 {[%clk 0:01:19.7]} 43... gxh5 {[%clk 0:00:11]} 44.
gxh5 {[%clk 0:01:18]} 44... Qb5 {[%clk 0:00:09.5]} 45. Qg4+ {[%clk 0:01:15.4]}
45... Kf8 {[%clk 0:00:09.4]} 46. Qf4 {[%clk 0:01:13.9]} 46... Qf1 {[%clk
0:00:06.5]} 47. Qh6+ {[%clk 0:01:06.4]} 47... Ke7 {[%clk 0:00:06.2]} 48. Qe3+
{[%clk 0:01:04.7]} 48... Kf8 {[%clk 0:00:06.2]} 49. Qc5+ {[%clk 0:01:04.3]}
49... Kg7 {[%clk 0:00:06.5]} 50. Qg5+ {[%clk 0:01:03.1]} 50... Kf8 {[%clk
0:00:06.9]} 51. Qg3 {[%clk 0:01:03.6]} 51... Qc4+ {[%clk 0:00:06.5]} 52. f4
{[%clk 0:01:03]} 52... Qf1 {[%clk 0:00:06.1]} 53. h6 {[%clk 0:00:58.5]} 53...
Qh1+ {[%clk 0:00:06.1]} 54. Kg5 {[%clk 0:00:58.6]} 54... Qd5+ {[%clk 0:00:04.9]}
55. f5 {[%clk 0:00:58.8]} 55... Qd2+ {[%clk 0:00:04.5]} 56. Kh5 {[%clk
0:00:57.7]} 56... Qd1+ {[%clk 0:00:05.2]} 57. Qg4 {[%clk 0:00:57.8]} 57... Qh1+
{[%clk 0:00:05.1]} 58. Kg5 {[%clk 0:00:58.1]} 58... Qc1+ {[%clk 0:00:04.1]} 59.
Qf4 {[%clk 0:00:58.1]} 59... Qg1+ {[%clk 0:00:03.8]} 60. Kf6 {[%clk 0:00:55]}
60... Qb6+ {[%clk 0:00:02.8]} 61. Ke5 {[%clk 0:00:53.4]} 61... Qb2+ {[%clk
0:00:02.2]} 62. Qd4 {[%clk 0:00:49.7]} 62... Qe2+ {[%clk 0:00:02.1]} 63. Kf6
{[%clk 0:00:49.9]} 1-0

[Event "Late-Titled-Tuesday-Blitz-January-30-2024"]
[Site "Chess.com"]
[Date "2024.01.30"]
[Round "5"]
[White "noblerone"]
[Black "SmirnovTimofey2000"]
[Result "1-0"]
[WhiteElo "2460"]
[BlackElo "1941"]
[TimeControl "180+1"]
[EndTime "14:57:20 PST"]
[Termination "noblerone won by resignation"]

1. e4 {[%clk 0:02:58.7]} 1... e5 {[%clk 0:02:59.3]} 2. Nf3 {[%clk 0:02:58.3]}
2... Nf6 {[%clk 0:02:59.4]} 3. Nxe5 {[%clk 0:02:57.7]} 3... d6 {[%clk
0:02:59.3]} 4. Nf3 {[%clk 0:02:57.5]} 4... Nxe4 {[%clk 0:02:59.4]} 5. Nc3 {[%clk
0:02:57.7]} 5... Nxc3 {[%clk 0:02:59.2]} 6. dxc3 {[%clk 0:02:58.6]} 6... Be7
{[%clk 0:02:59.9]} 7. Be3 {[%clk 0:02:59.5]} 7... Be6 {[%clk 0:02:55.4]} 8. Qd2
{[%clk 0:02:57]} 8... Nc6 {[%clk 0:02:53.1]} 9. Nd4 {[%clk 0:02:56.2]} 9... Qd7
{[%clk 0:02:49.7]} 10. Bb5 {[%clk 0:02:54.8]} 10... a6 {[%clk 0:02:42]} 11. Ba4
{[%clk 0:02:50.2]} 11... Bf6 {[%clk 0:02:34]} 12. O-O {[%clk 0:02:46.1]} 12...
O-O {[%clk 0:02:33.2]} 13. Bg5 {[%clk 0:02:33.2]} 13... Bxg5 {[%clk 0:02:25.8]}
14. Qxg5 {[%clk 0:02:32.1]} 14... b5 {[%clk 0:02:24.4]} 15. Bb3 {[%clk
0:02:17.6]} 15... Bxb3 {[%clk 0:02:24.1]} 16. axb3 {[%clk 0:02:17]} 16... Qe7
{[%clk 0:02:24.3]} 17. Qxe7 {[%clk 0:01:45.6]} 17... Nxe7 {[%clk 0:02:24.3]} 18.
Rfe1 {[%clk 0:01:45.6]} 18... Rfe8 {[%clk 0:02:21]} 19. f3 {[%clk 0:01:28.6]}
19... Nd5 {[%clk 0:02:15.5]} 20. Rxe8+ {[%clk 0:01:18.7]} 20... Rxe8 {[%clk
0:02:16.4]} 21. Rxa6 {[%clk 0:01:19]} 21... Ne3 {[%clk 0:02:09.4]} 22. Ra1
{[%clk 0:00:43.9]} 22... c5 {[%clk 0:02:02.4]} 23. Nxb5 {[%clk 0:00:42.8]} 23...
Nxc2 {[%clk 0:02:00.7]} 24. Rd1 {[%clk 0:00:41.8]} 24... Re6 {[%clk 0:01:30.2]}
25. Rxd6 {[%clk 0:00:34.4]} 25... Re1+ {[%clk 0:01:09.6]} 26. Kf2 {[%clk
0:00:34.1]} 26... g6 {[%clk 0:01:08.9]} 27. Rd2 {[%clk 0:00:32.1]} 27... Rc1
{[%clk 0:01:07.7]} 28. Nd6 {[%clk 0:00:25.1]} 28... Na1 {[%clk 0:01:03]} 29. b4
{[%clk 0:00:20.6]} 29... cxb4 {[%clk 0:01:01.1]} 30. cxb4 {[%clk 0:00:19.8]}
30... Nb3 {[%clk 0:00:59.4]} 31. Re2 {[%clk 0:00:20.1]} 31... Rc6 {[%clk
0:00:52.8]} 32. Ne4 {[%clk 0:00:19.1]} 32... Rb6 {[%clk 0:00:49.3]} 33. Nf6+
{[%clk 0:00:16.4]} 33... Kg7 {[%clk 0:00:49.3]} 34. Nd5 {[%clk 0:00:17.3]} 34...
Rb5 {[%clk 0:00:47]} 35. Re5 {[%clk 0:00:13.7]} 35... Nc1 {[%clk 0:00:41.1]} 36.
Ke3 {[%clk 0:00:12]} 36... Na2 {[%clk 0:00:33.8]} 37. Kd4 {[%clk 0:00:11.5]}
37... Nxb4 {[%clk 0:00:32.3]} 38. Nxb4 {[%clk 0:00:12.4]} 38... Rxb4+ {[%clk
0:00:33.2]} 39. Kc3 {[%clk 0:00:11.2]} 39... Ra4 {[%clk 0:00:25.6]} 40. Re2
{[%clk 0:00:10.9]} 40... Kf6 {[%clk 0:00:17.9]} 41. b4 {[%clk 0:00:10.3]} 41...
Ra7 {[%clk 0:00:15.9]} 42. b5 {[%clk 0:00:09.5]} 42... h5 {[%clk 0:00:13.5]} 43.
Kc4 {[%clk 0:00:07.9]} 43... g5 {[%clk 0:00:13.3]} 44. b6 {[%clk 0:00:07.9]}
44... Rb7 {[%clk 0:00:13.2]} 45. Kc5 {[%clk 0:00:08.3]} 45... g4 {[%clk
0:00:12.6]} 46. fxg4 {[%clk 0:00:08.2]} 46... hxg4 {[%clk 0:00:13.5]} 47. Kc6
{[%clk 0:00:08.7]} 1-0

[Event "Late-Titled-Tuesday-Blitz-January-30-2024"]
[Site "Chess.com"]
[Date "2024.01.30"]
[Round "5"]
[White "LiemLe"]
[Black "temus_galaktionov"]
[Result "0-1"]
[WhiteElo "3041"]
[BlackElo "2892"]
[TimeControl "180+1"]
[EndTime "14:57:24 PST"]
[Termination "temus_galaktionov won by checkmate"]

1. Nf3 {[%clk 0:03:00.9]} 1... c6 {[%clk 0:03:00.9]} 2. c4 {[%clk 0:03:00.1]}
2... g6 {[%clk 0:03:01.5]} 3. e3 {[%clk 0:03:00.9]} 3... Bg7 {[%clk 0:03:00.9]}
4. d4 {[%clk 0:03:00.2]} 4... d6 {[%clk 0:03:01.5]} 5. Nc3 {[%clk 0:03:00.1]}
5... Nd7 {[%clk 0:02:59.7]} 6. Be2 {[%clk 0:02:56.6]} 6... Ngf6 {[%clk
0:03:00.2]} 7. O-O {[%clk 0:02:57]} 7... O-O {[%clk 0:03:00]} 8. b3 {[%clk
0:02:57.5]} 8... Re8 {[%clk 0:02:58.8]} 9. Ba3 {[%clk 0:02:55.5]} 9... Qa5
{[%clk 0:02:58.5]} 10. Qc1 {[%clk 0:02:55.5]} 10... Qc7 {[%clk 0:02:52.3]} 11.
Rd1 {[%clk 0:02:54.5]} 11... a5 {[%clk 0:02:46.8]} 12. e4 {[%clk 0:02:44.8]}
12... Bf8 {[%clk 0:02:11.2]} 13. c5 {[%clk 0:02:14.4]} 13... dxc5 {[%clk
0:02:01.8]} 14. dxc5 {[%clk 0:02:11.8]} 14... e5 {[%clk 0:01:40.1]} 15. Qg5
{[%clk 0:01:56.6]} 15... h6 {[%clk 0:01:30.9]} 16. Qh4 {[%clk 0:01:56.7]} 16...
g5 {[%clk 0:01:17.9]} 17. Nxg5 {[%clk 0:01:56.8]} 17... hxg5 {[%clk 0:01:18.8]}
18. Qxg5+ {[%clk 0:01:57.5]} 18... Bg7 {[%clk 0:01:14.2]} 19. Rd3 {[%clk
0:01:49]} 19... Nh7 {[%clk 0:01:14.2]} 20. Qh4 {[%clk 0:01:47.9]} 20... Ndf8
{[%clk 0:01:13]} 21. Bh5 {[%clk 0:01:30.7]} 21... Ng6 {[%clk 0:01:09.6]} 22.
Bxg6 {[%clk 0:01:28.3]} 22... fxg6 {[%clk 0:01:10.5]} 23. Na4 {[%clk 0:01:17.9]}
23... Be6 {[%clk 0:01:09]} 24. Rad1 {[%clk 0:01:17.8]} 24... g5 {[%clk
0:00:39.7]} 25. Qg3 {[%clk 0:01:11.7]} 25... Rad8 {[%clk 0:00:38.7]} 26. Rd6
{[%clk 0:01:04.7]} 26... Bf8 {[%clk 0:00:38.4]} 27. h4 {[%clk 0:00:54.1]} 27...
Bxd6 {[%clk 0:00:36.9]} 28. cxd6 {[%clk 0:00:55]} 28... Qg7 {[%clk 0:00:36.3]}
29. Bb2 {[%clk 0:00:31]} 29... gxh4 {[%clk 0:00:26.6]} 30. Qxh4 {[%clk
0:00:31.9]} 30... Qg4 {[%clk 0:00:22]} 31. Qxg4+ {[%clk 0:00:31.1]} 31... Bxg4
{[%clk 0:00:22.9]} 32. Rd3 {[%clk 0:00:27.8]} 32... Nf6 {[%clk 0:00:19.6]} 33.
f3 {[%clk 0:00:21.4]} 33... Bc8 {[%clk 0:00:18.9]} 34. Bc3 {[%clk 0:00:21.7]}
34... Rd7 {[%clk 0:00:17.8]} 35. Nc5 {[%clk 0:00:18.8]} 35... Rg7 {[%clk
0:00:15.7]} 36. Bxa5 {[%clk 0:00:18.9]} 36... Nd7 {[%clk 0:00:12.5]} 37. Na4
{[%clk 0:00:18.9]} 37... Re6 {[%clk 0:00:11.5]} 38. Rd2 {[%clk 0:00:17]} 38...
Rgg6 {[%clk 0:00:11.6]} 39. Bc7 {[%clk 0:00:16]} 39... b6 {[%clk 0:00:10.6]} 40.
Kf2 {[%clk 0:00:13.7]} 40... Kf7 {[%clk 0:00:11]} 41. g4 {[%clk 0:00:13.9]}
41... Ke8 {[%clk 0:00:11.4]} 42. Kg3 {[%clk 0:00:14.2]} 42... Ref6 {[%clk
0:00:11.8]} 43. Rh2 {[%clk 0:00:14.4]} 43... Rf8 {[%clk 0:00:11.6]} 44. Rh7
{[%clk 0:00:13.3]} 44... Re6 {[%clk 0:00:10.7]} 45. Bxb6 {[%clk 0:00:11.9]}
45... Rxd6 {[%clk 0:00:08.7]} 46. Be3 {[%clk 0:00:11]} 46... Rd3 {[%clk
0:00:08.8]} 47. Kf2 {[%clk 0:00:11.6]} 47... Nf6 {[%clk 0:00:07.4]} 48. Rc7
{[%clk 0:00:11.1]} 48... Nxg4+ {[%clk 0:00:07.9]} 49. Kg3 {[%clk 0:00:09.8]}
49... Nxe3 {[%clk 0:00:08.2]} 50. Rxc8+ {[%clk 0:00:10.3]} 50... Ke7 {[%clk
0:00:08.9]} 51. Rxc6 {[%clk 0:00:10.1]} 51... Nf1+ {[%clk 0:00:09.2]} 52. Kg4
{[%clk 0:00:10.6]} 52... Rdxf3 {[%clk 0:00:09.9]} 53. Nc5 {[%clk 0:00:10.8]}
53... Ne3+ {[%clk 0:00:09.7]} 54. Kg5 {[%clk 0:00:11]} 54... Rg8+ {[%clk
0:00:09.2]} 55. Kh4 {[%clk 0:00:10.9]} 55... Ng2+ {[%clk 0:00:09.2]} 56. Kh5
{[%clk 0:00:11.1]} 56... Rh3# {[%clk 0:00:10.1]} 0-1

[Event "Late-Titled-Tuesday-Blitz-January-30-2024"]
[Site "Chess.com"]
[Date "2024.01.30"]
[Round "5"]
[White "bitter-cikolata"]
[Black "ElCoachRene"]
[Result "1-0"]
[WhiteElo "2535"]
[BlackElo "1972"]
[TimeControl "180+1"]
[EndTime "14:57:24 PST"]
[Termination "bitter-cikolata won on time"]

1. e4 {[%clk 0:02:55]} 1... Nc6 {[%clk 0:02:56.4]} 2. d4 {[%clk 0:02:51.4]} 2...
d5 {[%clk 0:02:56.3]} 3. exd5 {[%clk 0:02:50.6]} 3... Qxd5 {[%clk 0:02:55.5]} 4.
Nf3 {[%clk 0:02:51.5]} 4... Bg4 {[%clk 0:02:55.5]} 5. Be2 {[%clk 0:02:48.9]}
5... O-O-O {[%clk 0:02:55.2]} 6. Nc3 {[%clk 0:02:46.9]} 6... Qa5 {[%clk
0:02:52.6]} 7. Be3 {[%clk 0:02:41.5]} 7... e5 {[%clk 0:02:50.6]} 8. O-O {[%clk
0:02:33.2]} 8... exd4 {[%clk 0:02:45.4]} 9. Nxd4 {[%clk 0:02:32.2]} 9... Bxe2
{[%clk 0:02:44.9]} 10. Ncxe2 {[%clk 0:02:30.9]} 10... Nxd4 {[%clk 0:02:39.2]}
11. Nxd4 {[%clk 0:02:31.4]} 11... Nf6 {[%clk 0:02:33.1]} 12. Qf3 {[%clk
0:02:30.3]} 12... Bd6 {[%clk 0:02:26.6]} 13. c3 {[%clk 0:02:27.9]} 13... Qe5
{[%clk 0:02:24]} 14. g3 {[%clk 0:02:24.7]} 14... h5 {[%clk 0:02:15.9]} 15. Rae1
{[%clk 0:02:21.2]} 15... Qd5 {[%clk 0:01:53.9]} 16. Qxd5 {[%clk 0:02:15.7]}
16... Nxd5 {[%clk 0:01:53.8]} 17. Nf5 {[%clk 0:02:16.6]} 17... Nxe3 {[%clk
0:01:49.7]} 18. Rxe3 {[%clk 0:02:15.1]} 18... Bf8 {[%clk 0:01:46.4]} 19. Rfe1
{[%clk 0:02:14.2]} 19... g6 {[%clk 0:01:43.3]} 20. Ne7+ {[%clk 0:02:13.1]} 20...
Bxe7 {[%clk 0:01:32.2]} 21. Rxe7 {[%clk 0:02:14]} 21... Rhf8 {[%clk 0:01:31.6]}
22. h4 {[%clk 0:02:12.9]} 22... Rd2 {[%clk 0:01:28.1]} 23. R1e2 {[%clk
0:02:11.1]} 23... Rxe2 {[%clk 0:01:26.3]} 24. Rxe2 {[%clk 0:02:12]} 24... Kd7
{[%clk 0:01:23.8]} 25. Kg2 {[%clk 0:02:11.5]} 25... Re8 {[%clk 0:01:23.4]} 26.
Rd2+ {[%clk 0:02:07.6]} 26... Kc8 {[%clk 0:01:21.5]} 27. Kf3 {[%clk 0:02:08.5]}
27... Re5 {[%clk 0:01:18.1]} 28. Rd4 {[%clk 0:02:06.4]} 28... c5 {[%clk
0:01:13.6]} 29. Rf4 {[%clk 0:02:06.2]} 29... f5 {[%clk 0:01:12.6]} 30. Ra4
{[%clk 0:02:03.5]} 30... a6 {[%clk 0:01:11.4]} 31. b4 {[%clk 0:02:00.7]} 31...
Re4 {[%clk 0:01:06.3]} 32. a3 {[%clk 0:01:55.3]} 32... Kc7 {[%clk 0:00:58.5]}
33. Ra5 {[%clk 0:01:55.1]} 33... cxb4 {[%clk 0:00:53.9]} 34. cxb4 {[%clk
0:01:52.7]} 34... Rc4 {[%clk 0:00:50.5]} 35. Re5 {[%clk 0:00:42.9]} 35... Kd6
{[%clk 0:00:48]} 36. Re3 {[%clk 0:00:42.2]} 36... b5 {[%clk 0:00:43.4]} 37. Rd3+
{[%clk 0:00:41.4]} 37... Ke5 {[%clk 0:00:40.7]} 38. Re3+ {[%clk 0:00:41.5]}
38... Kd6 {[%clk 0:00:35.8]} 39. Re8 {[%clk 0:00:30.9]} 39... Rc3+ {[%clk
0:00:33.2]} 40. Kf4 {[%clk 0:00:13]} 40... Rxa3 {[%clk 0:00:32.4]} 41. Kg5
{[%clk 0:00:12.6]} 41... Ra4 {[%clk 0:00:32.6]} 42. Kxg6 {[%clk 0:00:11.7]}
42... Rxb4 {[%clk 0:00:31.8]} 43. Kxh5 {[%clk 0:00:12.1]} 43... Ra4 {[%clk
0:00:29.7]} 44. Kg5 {[%clk 0:00:11.5]} 44... b4 {[%clk 0:00:30.1]} 45. h5 {[%clk
0:00:10.5]} 45... b3 {[%clk 0:00:30]} 46. h6 {[%clk 0:00:10.1]} 46... f4 {[%clk
0:00:07.8]} 47. h7 {[%clk 0:00:07.9]} 47... Ra5+ {[%clk 0:00:06.1]} 48. Kg6
{[%clk 0:00:08.1]} 48... Kd7 {[%clk 0:00:04.5]} 49. h8=Q {[%clk 0:00:06.9]} 1-0

[Event "Late-Titled-Tuesday-Blitz-January-30-2024"]
[Site "Chess.com"]
[Date "2024.01.30"]
[Round "5"]
[White "The_Machine04"]
[Black "lupta_robin"]
[Result "0-1"]
[WhiteElo "2707"]
[BlackElo "2536"]
[TimeControl "180+1"]
[EndTime "14:57:25 PST"]
[Termination "lupta_robin won on time"]

1. d4 {[%clk 0:03:00.9]} 1... d5 {[%clk 0:02:59.5]} 2. Nf3 {[%clk 0:03:01]} 2...
Nf6 {[%clk 0:02:59.2]} 3. Nbd2 {[%clk 0:03:01.2]} 3... Bf5 {[%clk 0:02:58.2]} 4.
e3 {[%clk 0:03:01.2]} 4... c6 {[%clk 0:02:58.4]} 5. Ne5 {[%clk 0:03:01.5]} 5...
e6 {[%clk 0:02:56.5]} 6. g4 {[%clk 0:03:01.9]} 6... Be4 {[%clk 0:02:50.8]} 7. f3
{[%clk 0:03:02]} 7... Bg6 {[%clk 0:02:50.6]} 8. h4 {[%clk 0:03:02.6]} 8... h6
{[%clk 0:02:42.2]} 9. Nxg6 {[%clk 0:03:02.4]} 9... fxg6 {[%clk 0:02:43.1]} 10.
Bd3 {[%clk 0:03:02.7]} 10... Kf7 {[%clk 0:02:43]} 11. f4 {[%clk 0:03:01.7]}
11... Bd6 {[%clk 0:02:40.2]} 12. g5 {[%clk 0:02:59.2]} 12... Nh5 {[%clk
0:02:34.9]} 13. Qg4 {[%clk 0:02:58.3]} 13... Nd7 {[%clk 0:02:30.7]} 14. Nf3
{[%clk 0:02:55.1]} 14... Rg8 {[%clk 0:02:20.4]} 15. Bxg6+ {[%clk 0:02:34.2]}
15... Kxg6 {[%clk 0:02:19.9]} 16. Qxe6+ {[%clk 0:02:34]} 16... Kh7 {[%clk
0:02:19.4]} 17. Qxd6 {[%clk 0:02:30]} 17... Ng3 {[%clk 0:02:08.1]} 18. Rg1
{[%clk 0:02:14.8]} 18... Ne4 {[%clk 0:02:06.8]} 19. Qa3 {[%clk 0:02:07]} 19...
c5 {[%clk 0:02:02.6]} 20. Qd3 {[%clk 0:01:56.7]} 20... c4 {[%clk 0:01:57.5]} 21.
Qe2 {[%clk 0:01:56.1]} 21... Qe7 {[%clk 0:01:43]} 22. Bd2 {[%clk 0:01:52.4]}
22... b5 {[%clk 0:01:33.4]} 23. a3 {[%clk 0:01:49.2]} 23... a5 {[%clk
0:01:30.3]} 24. c3 {[%clk 0:01:39.4]} 24... Rae8 {[%clk 0:01:23.8]} 25. Kf1
{[%clk 0:01:33.5]} 25... Nxd2+ {[%clk 0:01:18.7]} 26. Qxd2 {[%clk 0:01:30.9]}
26... Qxe3 {[%clk 0:01:19.1]} 27. Qxe3 {[%clk 0:01:30.9]} 27... Rxe3 {[%clk
0:01:19.5]} 28. Kf2 {[%clk 0:01:31.6]} 28... Re4 {[%clk 0:01:17.1]} 29. Rg4
{[%clk 0:00:44.5]} 29... Rf8 {[%clk 0:01:11.8]} 30. Kg3 {[%clk 0:00:44.3]} 30...
Re2 {[%clk 0:01:08.3]} 31. Re1 {[%clk 0:00:34.7]} 31... Rfe8 {[%clk 0:01:08.8]}
32. Rxe2 {[%clk 0:00:27.3]} 32... Rxe2 {[%clk 0:01:09.7]} 33. Ne5 {[%clk
0:00:19.7]} 33... Nxe5 {[%clk 0:00:58.3]} 34. dxe5 {[%clk 0:00:19.5]} 34... Rxb2
{[%clk 0:00:57.9]} 35. f5 {[%clk 0:00:19.4]} 35... Re2 {[%clk 0:00:55.7]} 36. e6
{[%clk 0:00:18]} 36... b4 {[%clk 0:00:51.9]} 37. axb4 {[%clk 0:00:17.5]} 37...
axb4 {[%clk 0:00:51.9]} 38. cxb4 {[%clk 0:00:17.7]} 38... c3 {[%clk 0:00:52.5]}
39. Kf3 {[%clk 0:00:16.4]} 39... c2 {[%clk 0:00:45.2]} 40. Rg1 {[%clk
0:00:15.3]} 40... Re5 {[%clk 0:00:38.8]} 41. Kf4 {[%clk 0:00:14.2]} 41... Re4+
{[%clk 0:00:38.9]} 42. Kf3 {[%clk 0:00:14.1]} 42... Rxb4 {[%clk 0:00:32.3]} 43.
f6 {[%clk 0:00:10.8]} 43... hxg5 {[%clk 0:00:16.1]} 44. hxg5 {[%clk 0:00:08.8]}
44... Rb1 {[%clk 0:00:03.9]} 45. g6+ {[%clk 0:00:06.2]} 45... Kh6 {[%clk
0:00:03.7]} 0-1